bitfinex-derivatives/quotes_BTCF0:USTF0_20241022
["timestamp","ask_amount","ask_price","bid_price","bid_amount"]
[1729577442384,0.3608,67760.0,67753.0,0.11886181]
[1729577442579,0.3608,67760.0,67757.0,0.09]
[1729577442580,0.073825,67758.0,67757.0,0.09]
[1729577442780,0.09,67758.0,67755.0,0.073828]
[1729577444389,0.073825,67758.0,67757.0,0.09]
[1729577444688,0.073826,67757.0,67755.0,0.163828]
[1729577445284,0.073826,67757.0,67756.0,0.16120056]
[1729577445482,0.073826,67757.0,67756.0,0.08780769]
[1729577446482,0.073826,67757.0,67756.0,0.07980769]
[1729577447494,0.074826,67757.0,67756.0,0.07980769]
[1729577448292,0.075826,67757.0,67756.0,0.07980769]
[1729577452888,0.165826,67757.0,67756.0,0.07980769]
[1729577453097,0.165826,67757.0,67756.0,0.07349712]
[1729577453285,0.165826,67757.0,67755.0,0.09]
[1729577453887,0.075826,67757.0,67755.0,0.09]
[1729577454095,0.075826,67757.0,67756.0,0.007]
[1729577454896,0.074826,67757.0,67755.0,0.097]
[1729577455090,0.075826,67757.0,67756.0,0.003]
[1729577456602,0.074826,67757.0,67756.0,0.003]
[1729577456793,0.075826,67757.0,67756.0,0.009]
[1729577457399,0.074826,67757.0,67756.0,0.006]
[1729577457598,0.075826,67757.0,67756.0,0.006]
[1729577458201,0.075826,67757.0,67756.0,0.008]
[1729577461605,0.075826,67757.0,67756.0,0.09697859]
[1729577461898,0.075826,67757.0,67756.0,0.08897859]
[1729577462501,0.002,67757.0,67756.0,0.08897859]
[1729577467810,0.002,67757.0,67756.0,0.16280559]
[1729577472399,0.002,67757.0,67756.0,0.16286462]
[1729577473408,0.075826,67757.0,67756.0,0.16286462]
[1729577473801,0.075826,67757.0,67756.0,0.08903762]
[1729577475508,0.075826,67757.0,67755.0,0.073827]
[1729577476505,0.074826,67757.0,67755.0,0.073827]
[1729577476704,0.075826,67757.0,67755.0,0.074827]
[1729577476904,0.075826,67757.0,67756.0,0.13270087]
[1729577476905,0.074826,67757.0,67756.0,0.13270087]
[1729577477106,0.075826,67757.0,67756.0,0.13270087]
[1729577477406,0.075826,67757.0,67756.0,0.12470087]
[1729577478103,0.075826,67757.0,67756.0,0.12570087]
[1729577478907,0.002,67757.0,67756.0,0.12570087]
[1729577479511,0.002,67757.0,67756.0,0.12670087]
[1729577482606,0.002,67757.0,67756.0,0.26310144]
[1729577482810,0.002,67757.0,67756.0,0.15691361]
[1729577487414,0.002,67757.0,67756.0,0.24519197]
[1729577488922,0.002,67757.0,67756.0,0.15691361]
[1729577490620,0.002,67757.0,67756.0,0.067827]
[1729577492520,0.002,67757.0,67756.0,0.059827]
[1729577492719,0.075826,67757.0,67756.0,0.002]
[1729577497114,0.002,67757.0,67756.0,0.075827]
[1729577500623,0.075826,67757.0,67756.0,0.002]
[1729577501719,0.002,67757.0,67756.0,0.002]
[1729577504228,0.002,67757.0,67756.0,0.19724993]
[1729577505320,0.075826,67757.0,67756.0,0.19724993]
[1729577506032,0.002,67757.0,67756.0,0.19724993]
[1729577506528,0.002,67757.0,67756.0,0.002]
[1729577507422,0.075826,67757.0,67756.0,0.002]
[1729577507828,0.075826,67757.0,67755.0,0.067828]
[1729577508942,0.074826,67757.0,67755.0,0.067828]
[1729577509136,0.075826,67757.0,67755.0,0.068828]
[1729577509744,0.075826,67757.0,67755.0,0.069828]
[1729577511735,0.002,67757.0,67755.0,0.069828]
[1729577513043,0.073827,67756.0,67755.0,0.002]
[1729577513238,0.163827,67756.0,67755.0,0.002]
[1729577515440,0.164827,67756.0,67755.0,0.074828]
[1729577515639,0.165827,67756.0,67755.0,0.073828]
[1729577516452,0.075827,67756.0,67755.0,0.073828]
[1729577516744,0.075827,67756.0,67755.0,0.23653839]
[1729577516937,0.075827,67756.0,67755.0,0.1630387]
[1729577519547,0.075827,67756.0,67755.0,0.0892107]
[1729577519738,0.165827,67756.0,67755.0,0.0892107]
[1729577520947,0.075827,67756.0,67755.0,0.0892107]
[1729577521547,0.075827,67756.0,67755.0,0.05875076]
[1729577521843,0.073829,67754.0,67753.0,0.08561257]
[1729577522148,0.163829,67754.0,67753.0,0.08561257]
[1729577522752,0.163829,67754.0,67753.0,0.02686181]
[1729577522947,0.163829,67754.0,67751.0,0.49430276]
[1729577523260,0.164829,67754.0,67751.0,0.48538276]
[1729577524754,0.164829,67754.0,67751.0,0.51195727]
[1729577525147,0.165829,67754.0,67751.0,0.51195727]
[1729577526157,0.166829,67754.0,67751.0,0.51195727]
[1729577526753,0.073831,67753.0,67751.0,0.15915727]
[1729577526955,0.073831,67752.0,67751.0,0.08532527]
[1729577527849,0.073831,67752.0,67751.0,0.02657451]
[1729577528044,0.073831,67752.0,67751.0,0.05875076]
[1729577528349,0.073831,67752.0,67748.0,0.163835]
[1729577528350,0.073831,67752.0,67750.0,0.08474435]
[1729577528655,0.09,67751.0,67750.0,0.05875076]
[1729577529154,0.09,67751.0,67750.0,0.0587393]
[1729577529452,0.09,67751.0,67750.0,0.08914207]
[1729577530156,0.09,67751.0,67750.0,0.1773417]
[1729577530157,0.173832,67751.0,67750.0,0.1773417]
[1729577530346,0.073834,67750.0,67749.0,0.07344033]
[1729577530548,0.073834,67750.0,67745.0,0.44899963]
[1729577530549,0.09,67750.0,67748.0,0.07344033]
[1729577530853,0.163835,67749.0,67748.0,0.07344033]
[1729577531053,0.09,67749.0,67747.0,0.07344033]
[1729577531243,0.073836,67748.0,67747.0,0.07344033]
[1729577532250,0.09,67749.0,67746.0,0.07344033]
[1729577532453,0.163837,67747.0,67746.0,0.07344033]
[1729577532651,0.163837,67747.0,67746.0,0.16284016]
[1729577532856,0.163837,67747.0,67746.0,0.16284522]
[1729577533255,0.163837,67747.0,67745.0,0.43424033]
[1729577533452,0.163837,67747.0,67746.0,0.07344033]
[1729577533851,0.170837,67747.0,67746.0,0.07344033]
[1729577534053,0.170837,67747.0,67745.0,0.4614098]
[1729577534560,0.169837,67747.0,67745.0,0.4614098]
[1729577535462,0.174837,67747.0,67745.0,0.4614098]
[1729577535859,0.174837,67747.0,67745.0,0.1006098]
[1729577536554,0.174837,67747.0,67745.0,0.071198]
[1729577538557,0.174837,67747.0,67745.0,0.063198]
[1729577539349,0.174837,67747.0,67745.0,0.01916947]
[1729577539554,0.174837,67747.0,67744.0,0.11786853]
[1729577540649,0.173837,67747.0,67744.0,0.11786853]
[1729577540849,0.172837,67747.0,67744.0,0.11786853]
[1729577542358,0.172837,67747.0,67744.0,0.20786853]
[1729577542563,0.172837,67747.0,67744.0,0.23425595]
[1729577543051,0.172837,67747.0,67745.0,0.04402853]
[1729577543250,0.172837,67747.0,67744.0,0.19022742]
[1729577543251,0.172837,67747.0,67746.0,0.04402853]
[1729577544264,0.173837,67747.0,67746.0,0.04402853]
[1729577544457,0.174837,67747.0,67745.0,0.073839]
[1729577544760,0.168837,67747.0,67745.0,0.073839]
[1729577545066,0.175837,67747.0,67745.0,0.073839]
[1729577545265,0.170837,67747.0,67745.0,0.073839]
[1729577545453,0.176837,67747.0,67745.0,0.073839]
[1729577546466,0.169837,67747.0,67745.0,0.073839]
[1729577546769,0.175837,67747.0,67745.0,0.073839]
[1729577547351,0.174837,67747.0,67745.0,0.073839]
[1729577549160,0.174837,67747.0,67745.0,0.14727933]
[1729577551267,0.174837,67747.0,67746.0,0.07344033]
[1729577551462,0.174837,67747.0,67745.0,0.1178877]
[1729577551659,0.174837,67747.0,67746.0,0.0440487]
[1729577551854,0.174837,67747.0,67745.0,0.073839]
[1729577553061,0.175837,67747.0,67745.0,0.073839]
[1729577553870,0.174837,67747.0,67745.0,0.065839]
[1729577557464,0.174837,67747.0,67745.0,0.1245706]
[1729577558368,0.101,67747.0,67746.0,0.073838]
[1729577559263,0.101,67747.0,67746.0,0.1325696]
[1729577559772,0.102,67747.0,67746.0,0.1325696]
[1729577560075,0.103,67747.0,67746.0,0.1325696]
[1729577560572,0.103,67747.0,67746.0,0.163356]
[1729577560772,0.176837,67747.0,67746.0,0.089518]
[1729577564470,0.176837,67747.0,67746.0,0.08951927]
[1729577564776,0.176837,67747.0,67746.0,0.16335727]
[1729577566671,0.176837,67747.0,67746.0,0.08951927]
[1729577569274,0.176837,67747.0,67746.0,0.08151927]
[1729577574284,0.176837,67747.0,67745.0,0.073839]
[1729577575280,0.176837,67747.0,67746.0,0.05881782]
[1729577575281,0.169837,67747.0,67746.0,0.05881782]
[1729577575686,0.173837,67747.0,67746.0,0.05881782]
[1729577576381,0.167837,67747.0,67746.0,0.05881782]
[1729577576582,0.174837,67747.0,67746.0,0.05881782]
[1729577576978,0.175837,67747.0,67746.0,0.05881782]
[1729577579699,0.175837,67747.0,67744.0,0.02638742]
[1729577579905,0.175837,67747.0,67743.0,0.073841]
[1729577580605,0.073839,67746.0,67743.0,0.073841]
[1729577580797,0.09,67744.0,67743.0,0.073841]
[1729577581597,0.09,67744.0,67743.0,0.10059786]
[1729577583099,0.09,67744.0,67743.0,0.10521589]
[1729577583297,0.096,67744.0,67743.0,0.10521589]
[1729577584399,0.096,67744.0,67743.0,0.19463612]
[1729577584603,0.096,67744.0,67743.0,0.19001809]
[1729577585208,0.096,67744.0,67743.0,0.19463612]
[1729577586912,0.096,67744.0,67743.0,0.19001809]
[1729577587703,0.096,67744.0,67743.0,0.19463602]
[1729577588007,0.096,67744.0,67743.0,0.19001809]
[1729577588913,0.096,67744.0,67743.0,0.30120697]
[1729577589503,0.096,67744.0,67743.0,0.19001809]
[1729577590702,0.096,67744.0,67743.0,0.29643126]
[1729577591011,0.096,67744.0,67743.0,0.19001809]
[1729577591817,0.096,67744.0,67743.0,0.29656847]
[1729577593913,0.096,67744.0,67743.0,0.19001809]
[1729577596806,0.096,67744.0,67743.0,0.10059786]
[1729577600107,0.096,67744.0,67743.0,0.02675686]
[1729577600311,0.16984,67744.0,67742.0,0.3609346]
[1729577600813,0.073841,67743.0,67742.0,0.38711142]
[1729577602219,0.074841,67743.0,67742.0,0.38711142]
[1729577602717,0.077841,67743.0,67742.0,0.38711142]
[1729577603621,0.004,67743.0,67742.0,0.38711142]
[1729577604816,0.004,67743.0,67742.0,0.47666711]
[1729577605025,0.004,67743.0,67742.0,0.58341406]
[1729577605424,0.004,67743.0,67742.0,0.65725606]
[1729577607615,0.004,67743.0,67742.0,0.65718147]
[1729577609227,0.004,67743.0,67742.0,0.55047508]
[1729577612129,0.004,67743.0,67742.0,0.46095342]
[1729577619930,0.004,67743.0,67742.0,0.65730449]
[1729577621347,0.004,67743.0,67742.0,0.66653916]
[1729577621545,0.004,67743.0,67742.0,0.65730326]
[1729577623351,0.004,67743.0,67742.0,0.46095342]
[1729577624247,0.004,67743.0,67742.0,0.56771914]
[1729577624751,0.004,67743.0,67742.0,0.65729057]
[1729577625149,0.004,67743.0,67742.0,0.56771914]
[1729577625350,0.004,67743.0,67742.0,0.46095342]
[1729577635349,0.004,67743.0,67742.0,0.657333]
[1729577642461,0.004,67743.0,67742.0,0.46095342]
[1729577644860,0.004,67743.0,67742.0,0.62407234]
[1729577648574,0.004,67743.0,67742.0,0.62408859]
[1729577649465,0.004,67743.0,67742.0,0.65733075]
[1729577664489,0.004,67743.0,67742.0,0.53451571]
[1729577665989,0.004,67743.0,67742.0,0.62412136]
[1729577667688,0.004,67743.0,67742.0,0.62411339]
[1729577667896,0.004,67743.0,67742.0,0.53451571]
[1729577669707,0.004,67743.0,67742.0,0.53913375]
[1729577672500,0.004,67743.0,67742.0,0.66196619]
[1729577674009,0.004,67743.0,67742.0,0.66197167]
[1729577676805,0.004,67743.0,67742.0,0.65735363]
[1729577686604,0.004,67743.0,67742.0,0.65728371]
[1729577687604,0.004,67743.0,67742.0,0.62407796]
[1729577689009,0.004,67743.0,67742.0,0.62408266]
[1729577694110,0.004,67743.0,67742.0,0.62407949]
[1729577694506,0.004,67743.0,67742.0,0.65729079]
[1729577700514,0.004,67743.0,67742.0,0.66190883]
[1729577700918,0.004,67743.0,67742.0,0.65729079]
[1729577701516,0.004,67743.0,67742.0,0.66190883]
[1729577701711,0.004,67743.0,67742.0,0.65729079]
[1729577702012,0.004,67743.0,67742.0,0.66190883]
[1729577702215,0.004,67743.0,67742.0,0.65729079]
[1729577702604,0.004,67743.0,67742.0,0.62410439]
[1729577705219,0.094,67743.0,67742.0,0.62410439]
[1729577705808,0.094,67743.0,67742.0,0.62410311]
[1729577707511,0.094,67743.0,67742.0,0.71413588]
[1729577707512,0.004,67743.0,67742.0,0.71413588]
[1729577707724,0.00221432,67757.0,67756.0,0.073827]
[1729577708020,0.09,67770.0,67764.0,0.073818]
[1729577708224,0.09,67770.0,67769.0,0.09]
[1729577708724,0.163812,67770.0,67767.0,0.09]
[1729577709026,0.09,67768.0,67766.0,0.073816]
[1729577709714,0.09,67768.0,67767.0,0.073815]
[1729577710115,0.073816,67766.0,67765.0,0.07350938]
[1729577710315,0.073816,67766.0,67764.0,0.07350938]
[1729577710518,0.073816,67766.0,67762.0,0.07382]
[1729577710519,0.09,67765.0,67763.0,0.07350938]
[1729577710715,0.09,67765.0,67763.0,0.14732838]
[1729577710913,0.09,67765.0,67764.0,0.073818]
[1729577711816,0.09,67765.0,67762.0,0.02691921]
[1729577711817,0.001,67768.0,67762.0,0.02691921]
[1729577712025,0.001,67768.0,67767.0,0.13246357]
[1729577712228,0.001,67768.0,67767.0,0.22246357]
[1729577712521,0.09,67772.0,67767.0,0.09]
[1729577712714,0.09,67772.0,67771.0,0.20778175]
[1729577712916,0.09,67772.0,67771.0,0.11778175]
[1729577713112,0.09,67772.0,67769.0,0.05862767]
[1729577713113,0.16381,67772.0,67769.0,0.05862767]
[1729577713315,0.09,67770.0,67768.0,0.073814]
[1729577713520,0.09,67770.0,67768.0,0.13243266]
[1729577713715,0.163812,67770.0,67769.0,0.073813]
[1729577713914,0.073812,67770.0,67769.0,0.073813]
[1729577715628,0.165812,67770.0,67769.0,0.077813]
[1729577717125,0.075812,67770.0,67769.0,0.077813]
[1729577717436,0.165812,67770.0,67769.0,0.077813]
[1729577718725,0.165812,67770.0,67769.0,0.10460415]
[1729577722936,0.165812,67770.0,67769.0,0.02279115]
[1729577723233,0.165812,67770.0,67766.0,0.073816]
[1729577723234,0.073814,67769.0,67766.0,0.073816]
[1729577723438,0.09,67767.0,67766.0,0.073816]
[1729577724927,0.091,67767.0,67766.0,0.073816]
[1729577725436,0.092,67767.0,67766.0,0.073816]
[1729577726039,0.165815,67767.0,67766.0,0.073816]
[1729577726633,0.165815,67767.0,67765.0,0.04392409]
[1729577726634,0.182,67767.0,67765.0,0.04392409]
[1729577726834,0.073816,67766.0,67757.0,0.3608]
[1729577727034,0.073827,67756.0,67755.0,0.05861866]
[1729577727334,0.073829,67754.0,67753.0,0.28036845]
[1729577727541,0.163829,67754.0,67753.0,0.28036845]
[1729577727735,0.163829,67754.0,67753.0,0.05861866]
[1729577728141,0.163829,67754.0,67753.0,0.27857638]
[1729577728436,0.163829,67754.0,67753.0,0.21995772]
[1729577728644,0.163829,67754.0,67753.0,0.27858336]
[1729577729138,0.163829,67754.0,67753.0,0.21995772]
[1729577729438,0.163829,67754.0,67753.0,0.24650323]
[1729577731134,0.09,67754.0,67753.0,0.24650323]
[1729577739236,0.073824,67760.0,67753.0,0.24650323]
[1729577739237,0.09,67756.0,67754.0,0.073829]
[1729577739644,0.09,67756.0,67755.0,0.31275184]
[1729577740344,0.073818,67764.0,67755.0,0.49275184]
[1729577740644,0.681,67776.0,67764.0,0.073818]
[1729577740645,0.07381,67772.0,67764.0,0.073818]
[1729577740842,0.681,67776.0,67764.0,0.073818]
[1729577740843,0.073811,67771.0,67764.0,0.073818]
[1729577741143,0.09,67766.0,67764.0,0.073818]
[1729577741339,0.09,67766.0,67765.0,0.09014448]
[1729577742143,0.09,67766.0,67765.0,0.16396148]
[1729577744239,0.09,67766.0,67765.0,0.23735609]
[1729577745143,0.09,67766.0,67765.0,0.16396148]
[1729577746639,0.09,67766.0,67765.0,0.073817]
[1729577746847,0.09,67766.0,67765.0,0.16425877]
[1729577747658,0.09,67766.0,67765.0,0.073817]
[1729577748350,0.091,67768.0,67767.0,0.073815]
[1729577750052,0.092,67768.0,67767.0,0.073815]
[1729577751858,0.165814,67768.0,67767.0,0.073815]
[1729577753653,0.165814,67768.0,67767.0,0.065815]
[1729577757268,0.23638227,67796.0,67767.0,0.065815]
[1729577757269,0.36301369,67782.0,67772.0,0.073809]
[1729577757555,0.163808,67773.0,67772.0,0.073809]
[1729577757758,0.163808,67773.0,67767.0,0.36168]
[1729577757759,0.073811,67771.0,67768.0,0.073814]
[1729577757958,0.09,67769.0,67768.0,0.073814]
[1729577758559,0.09,67769.0,67767.0,0.3616]
[1729577758560,0.073814,67768.0,67767.0,0.3616]
[1729577758765,0.073814,67768.0,67767.0,0.3608]
[1729577760361,0.074814,67768.0,67767.0,0.3618]
[1729577761267,0.075814,67768.0,67767.0,0.3638]
[1729577763363,0.165814,67768.0,67767.0,0.3638]
[1729577764566,0.165814,67768.0,67767.0,0.43719896]
[1729577765453,0.165814,67768.0,67767.0,0.52729496]
[1729577766669,0.075814,67768.0,67767.0,0.52729496]
[1729577766864,0.165814,67768.0,67767.0,0.52729496]
[1729577767565,0.165814,67768.0,67767.0,0.453896]
[1729577769060,0.165814,67768.0,67767.0,0.445896]
[1729577769453,0.165814,67768.0,67767.0,0.09318691]
[1729577769656,0.165814,67768.0,67767.0,0.003]
[1729577769657,0.255814,67768.0,67767.0,0.003]
[1729577769857,0.165814,67768.0,67767.0,0.003]
[1729577779761,0.075814,67768.0,67767.0,0.003]
[1729577779966,0.165814,67768.0,67767.0,0.003]
[1729577780167,0.165814,67768.0,67767.0,0.06177508]
[1729577780472,0.165814,67768.0,67767.0,0.003]
[1729577780665,0.092,67768.0,67767.0,0.076815]
[1729577781175,0.092,67768.0,67767.0,0.166815]
[1729577781568,0.092,67768.0,67767.0,0.33050382]
[1729577782072,0.092,67768.0,67767.0,0.24050382]
[1729577783364,0.092,67768.0,67767.0,0.24045451]
[1729577783671,0.092,67768.0,67767.0,0.16704365]
[1729577783970,0.092,67768.0,67767.0,0.24045426]
[1729577784169,0.165814,67768.0,67767.0,0.24034614]
[1729577784574,0.165814,67768.0,67767.0,0.23234614]
[1729577784771,0.165814,67768.0,67767.0,0.068815]
[1729577787569,0.075814,67768.0,67767.0,0.068815]
[1729577787773,0.165814,67768.0,67767.0,0.068815]
[1729577799885,0.165814,67768.0,67767.0,0.060815]
[1729577800476,0.073815,67767.0,67766.0,0.07341061]
[1729577800682,0.073815,67767.0,67765.0,0.07341061]
[1729577800881,0.09,67766.0,67765.0,0.07341061]
[1729577801183,0.073817,67765.0,67764.0,0.17338733]
[1729577801492,0.073817,67765.0,67764.0,0.26391995]
[1729577802585,0.084817,67765.0,67764.0,0.19050934]
[1729577803287,0.093817,67765.0,67764.0,0.19050934]
[1729577806874,0.093817,67765.0,67764.0,0.1904783]
[1729577807782,0.093817,67765.0,67764.0,0.08495582]
[1729577808983,0.183817,67765.0,67764.0,0.02615872]
[1729577809187,0.11,67765.0,67759.0,0.09788]
[1729577809391,0.163823,67760.0,67759.0,0.09788]
[1729577811177,0.169823,67760.0,67759.0,0.09788]
[1729577811486,0.169823,67760.0,67759.0,0.1243377]
[1729577812277,0.173823,67760.0,67759.0,0.1243377]
[1729577812591,0.173823,67760.0,67759.0,0.0264577]
[1729577812889,0.173823,67760.0,67758.0,0.4195971]
[1729577813087,0.173823,67760.0,67758.0,0.3608]
[1729577813390,0.173823,67760.0,67758.0,0.4195971]
[1729577813790,0.173823,67760.0,67758.0,0.3608]
[1729577813990,0.173823,67760.0,67758.0,0.4195971]
[1729577814187,0.173823,67760.0,67758.0,0.4934211]
[1729577814385,0.172823,67760.0,67758.0,0.51941873]
[1729577814785,0.172823,67760.0,67759.0,0.0905482]
[1729577815190,0.171823,67760.0,67759.0,0.0825482]
[1729577816093,0.172823,67760.0,67759.0,0.0825482]
[1729577817085,0.082823,67760.0,67759.0,0.1725482]
[1729577817486,0.077823,67760.0,67759.0,0.1725482]
[1729577817689,0.083823,67760.0,67759.0,0.1725482]
[1729577819799,0.083823,67760.0,67759.0,0.28042109]
[1729577820095,0.083823,67760.0,67759.0,0.35424509]
[1729577821901,0.083823,67760.0,67759.0,0.22259906]
[1729577822200,0.01,67760.0,67759.0,0.22259906]
[1729577825399,0.01,67760.0,67759.0,0.163824]
[1729577825990,0.01,67760.0,67759.0,0.22260733]
[1729577828096,0.01,67760.0,67759.0,0.163824]
[1729577829912,0.01,67760.0,67759.0,0.2837136]
[1729577830210,0.073806,67776.0,67759.0,0.2837136]
[1729577830211,0.073814,67769.0,67764.0,0.073818]
[1729577830517,0.073814,67769.0,67768.0,0.09]
[1729577830811,0.163814,67769.0,67768.0,0.09025637]
[1729577831513,0.164814,67769.0,67768.0,0.09025637]
[1729577831902,0.166814,67769.0,67768.0,0.09025637]
[1729577832103,0.166813,67769.0,67768.0,0.09028884]
[1729577832411,0.165813,67769.0,67768.0,0.09028884]
[1729577832998,0.165813,67769.0,67768.0,0.09428884]
[1729577834411,0.165813,67769.0,67768.0,0.16810284]
[1729577835715,0.165813,67769.0,67768.0,0.241575]
[1729577836517,0.165813,67769.0,67768.0,0.15128616]
[1729577836920,0.165813,67769.0,67768.0,0.077814]
[1729577837420,0.165813,67769.0,67768.0,0.10461458]
[1729577840515,0.075813,67769.0,67768.0,0.10461458]
[1729577840721,0.36301376,67782.0,67774.0,0.073806]
[1729577840722,0.00221376,67782.0,67774.0,0.073806]
[1729577841017,0.073806,67775.0,67774.0,0.073806]
[1729577841322,0.073806,67775.0,67774.0,0.23727719]
[1729577841523,0.073806,67775.0,67774.0,0.073806]
[1729577842119,0.073806,67775.0,67774.0,0.166806]
[1729577843127,0.073806,67775.0,67774.0,0.169806]
[1729577844819,0.163806,67775.0,67774.0,0.169806]
[1729577846129,0.163806,67775.0,67774.0,0.161806]
[1729577846519,0.163806,67775.0,67774.0,0.071806]
[1729577849731,0.163806,67775.0,67774.0,0.006]
[1729577852029,0.163806,67775.0,67774.0,0.06471471]
[1729577854423,0.163806,67775.0,67774.0,0.006]
[1729577861337,0.073808,67773.0,67772.0,0.071809]
[1729577862034,0.073812,67770.0,67769.0,0.0440468]
[1729577862238,0.073813,67769.0,67768.0,0.02680058]
[1729577862536,0.073815,67767.0,67766.0,0.0440468]
[1729577862739,0.09,67767.0,67765.0,0.3608]
[1729577862932,0.073816,67766.0,67765.0,0.3608]
[1729577864533,0.073816,67766.0,67765.0,0.02597283]
[1729577864734,0.45156,67767.0,67757.0,0.4786728]
[1729577864937,0.073826,67757.0,67756.0,0.04407514]
[1729577865136,0.163826,67757.0,67756.0,0.04407514]
[1729577865336,0.163826,67757.0,67753.0,0.1737235]
[1729577865337,0.09,67757.0,67755.0,0.04407514]
[1729577865537,0.09,67756.0,67754.0,0.04407514]
[1729577866442,0.073828,67755.0,67753.0,0.04628864]
[1729577866631,0.434629,67754.0,67753.0,0.0022135]
[1729577867446,0.524629,67754.0,67753.0,0.0022135]
[1729577867641,0.967429,67754.0,67753.0,0.0022135]
[1729577868141,0.877429,67754.0,67753.0,0.0042135]
[1729577868344,0.967429,67754.0,67753.0,0.0042135]
[1729577868743,0.877429,67754.0,67753.0,0.0052135]
[1729577869644,0.878429,67754.0,67753.0,0.0072135]
[1729577870954,0.878429,67754.0,67753.0,0.0052135]
[1729577871144,0.879429,67754.0,67753.0,0.0072135]
[1729577871943,0.526629,67754.0,67753.0,0.0072135]
[1729577873550,0.526629,67754.0,67753.0,0.005]
[1729577876755,0.073834,67750.0,67749.0,0.04092735]
[1729577876946,0.163834,67750.0,67749.0,0.04092735]
[1729577877144,0.3628,67754.0,67749.0,0.04092735]
[1729577877344,0.3628,67754.0,67753.0,0.07383]
[1729577877855,0.3618,67754.0,67753.0,0.07383]
[1729577878051,0.4518,67754.0,67753.0,0.07383]
[1729577878351,0.3608,67754.0,67753.0,0.07383]
[1729577879051,0.3618,67754.0,67753.0,0.07383]
[1729577879752,0.3628,67754.0,67753.0,0.07383]
[1729577880747,0.3608,67760.0,67759.0,0.073824]
[1729577880952,0.09,67769.0,67759.0,0.3608]
[1729577881151,0.09,67766.0,67765.0,0.073816]
[1729577881348,0.07381,67772.0,67764.0,0.09]
[1729577881659,0.3616,67775.0,67771.0,0.09]
[1729577881660,0.3608,67775.0,67771.0,0.09]
[1729577881844,0.073807,67775.0,67774.0,0.09]
[1729577882357,0.073807,67775.0,67773.0,0.073808]
[1729577883360,0.084807,67775.0,67772.0,0.09]
[1729577883561,0.084807,67775.0,67774.0,0.073807]
[1729577883952,0.094807,67775.0,67774.0,0.073807]
[1729577884557,0.084807,67775.0,67774.0,0.073807]
[1729577884858,0.084807,67775.0,67774.0,0.002]
[1729577885957,0.073807,67775.0,67774.0,0.004]
[1729577887963,0.073801,67780.0,67776.0,0.073805]
[1729577888153,0.073801,67780.0,67777.0,0.13229099]
[1729577888347,0.073801,67780.0,67778.0,0.05848699]
[1729577888853,0.073801,67780.0,67777.0,0.13229099]
[1729577889055,0.076801,67780.0,67778.0,0.05848699]
[1729577889252,0.078801,67780.0,67778.0,0.05848699]
[1729577890049,0.078801,67780.0,67777.0,0.073804]
[1729577890858,0.076801,67780.0,67777.0,0.073804]
[1729577891063,0.078801,67780.0,67777.0,0.073804]
[1729577891459,0.142,67780.0,67775.0,0.14]
[1729577891663,0.073804,67777.0,67775.0,0.14]
[1729577892056,0.073804,67777.0,67775.0,0.073806]
[1729577892256,0.073804,67777.0,67775.0,0.213806]
[1729577893464,0.073804,67777.0,67775.0,0.214806]
[1729577894355,0.14,67780.0,67775.0,0.215806]
[1729577894756,0.36301376,67782.0,67781.0,0.0738]
[1729577894961,0.36301376,67782.0,67781.0,0.2138]
[1729577895164,0.36301376,67782.0,67781.0,0.0738]
[1729577895659,0.36301376,67782.0,67777.0,0.14]
[1729577895858,0.36301376,67782.0,67780.0,0.0738]
[1729577896253,0.36801376,67782.0,67781.0,0.0738]
[1729577896561,0.37201376,67782.0,67781.0,0.0738]
[1729577897157,0.36801376,67782.0,67781.0,0.0738]
[1729577897362,0.37201376,67782.0,67781.0,0.0738]
[1729577898457,0.36701376,67782.0,67781.0,0.0738]
[1729577898657,0.36801376,67782.0,67781.0,0.0738]
[1729577898861,0.37201376,67782.0,67781.0,0.0738]
[1729577900367,0.37201376,67782.0,67781.0,0.1002522]
[1729577902360,0.01121376,67782.0,67781.0,0.1002522]
[1729577906667,0.01121376,67782.0,67781.0,0.15873919]
[1729577907571,0.01121376,67782.0,67781.0,0.0922522]
[1729577910674,0.009,67782.0,67781.0,0.0922522]
[1729577912976,0.099,67782.0,67781.0,0.0922522]
[1729577913674,0.009,67782.0,67781.0,0.0922522]
[1729577913874,0.099,67782.0,67781.0,0.0922522]
[1729577914070,0.099,67782.0,67781.0,0.16570514]
[1729577914873,0.099,67782.0,67781.0,0.0922522]
[1729577917067,0.099,67782.0,67781.0,0.16570514]
[1729577918665,0.099,67782.0,67781.0,0.18237599]
[1729577919769,0.009,67782.0,67781.0,0.18237599]
[1729577919967,0.099,67782.0,67781.0,0.0922522]
[1729577922669,0.099,67782.0,67781.0,0.0842522]
[1729577926977,0.099,67782.0,67781.0,0.17437814]
[1729577927578,0.099,67782.0,67781.0,0.1789937]
[1729577927773,0.099,67782.0,67781.0,0.17437814]
[1729577928385,0.172799,67782.0,67781.0,0.11657814]
[1729577928590,0.099,67782.0,67781.0,0.11657814]
[1729577928786,0.099,67782.0,67781.0,0.19037814]
[1729577929279,0.099,67782.0,67781.0,0.19045939]
[1729577929482,0.009,67782.0,67781.0,0.19045939]
[1729577929677,0.099,67782.0,67781.0,0.19045939]
[1729577932373,0.009,67782.0,67781.0,0.19045939]
[1729577935181,0.009,67782.0,67781.0,0.15897326]
[1729577935389,0.009,67782.0,67781.0,0.08517326]
[1729577935583,0.082799,67782.0,67781.0,0.08517326]
[1729577937086,0.082799,67782.0,67781.0,0.0264522]
[1729577937291,0.082799,67782.0,67779.0,0.073802]
[1729577938177,0.082799,67782.0,67779.0,0.065802]